[Event "*** Titled Tuesday Blitz"]
[Site "Chess.com"]
[Date "2021.04.27"]
[Round "5"]
[White "Yana_pro"]
[Black "Steegersee"]
[Result "1-0"]
[WhiteElo "1993"]
[BlackElo "2195"]
[TimeControl "180+1"]
[EndTime "10:57:35 PDT"]
[Termination "Yana_pro won by resignation"]

1. e4 {[%clk 0:03:00.9]} 1... e6 {[%clk 0:02:48.7]} 2. d4 {[%clk 0:02:59.4]}
2... d5 {[%clk 0:02:48.9]} 3. Nd2 {[%clk 0:02:59.6]} 3... h6 {[%clk 0:02:48.2]}
4. Bd3 {[%clk 0:02:57.4]} 4... Nf6 {[%clk 0:02:46.9]} 5. e5 {[%clk 0:02:56.5]}
5... Nfd7 {[%clk 0:02:47]} 6. Ne2 {[%clk 0:02:56.9]} 6... c5 {[%clk 0:02:46.4]}
7. c3 {[%clk 0:02:57.3]} 7... g5 {[%clk 0:02:43.6]} 8. a3 {[%clk 0:02:27.1]}
8... Nc6 {[%clk 0:02:30.8]} 9. b4 {[%clk 0:02:26.1]} 9... c4 {[%clk 0:02:25.4]}
10. Bc2 {[%clk 0:02:19]} 10... f5 {[%clk 0:02:02]} 11. exf6 {[%clk 0:02:10]}
11... Kf7 {[%clk 0:01:59]} 12. h4 {[%clk 0:01:52.5]} 12... Qxf6 {[%clk
0:01:56.4]} 13. hxg5 {[%clk 0:01:19.9]} 13... hxg5 {[%clk 0:01:57.3]} 14. Rxh8
{[%clk 0:01:12.5]} 14... Qxh8 {[%clk 0:01:58.2]} 15. Nf3 {[%clk 0:01:12.4]}
15... Be7 {[%clk 0:01:47.7]} 16. Bxg5 {[%clk 0:01:07.9]} 16... Nf6 {[%clk
0:01:41.5]} 17. Ng3 {[%clk 0:01:03.3]} 17... Bd6 {[%clk 0:01:21.6]} 18. Nh4
{[%clk 0:01:02.1]} 18... Ne7 {[%clk 0:00:45.2]} 19. Qf3 {[%clk 0:00:59.4]} 19...
Qg7 {[%clk 0:00:43.5]} 20. Bxf6 {[%clk 0:00:39.6]} 20... Qxf6 {[%clk 0:00:39.4]}
21. Qh5+ {[%clk 0:00:40.2]} 21... Kf8 {[%clk 0:00:33.7]} 22. O-O-O {[%clk
0:00:27.8]} 22... Bf4+ {[%clk 0:00:21.5]} 23. Kb2 {[%clk 0:00:26.8]} 23... Qh6
{[%clk 0:00:20.4]} 24. Qg4 {[%clk 0:00:18.1]} 24... e5 {[%clk 0:00:18.5]} 25.
Ng6+ {[%clk 0:00:18.7]} 25... Nxg6 {[%clk 0:00:17.6]} 26. Qxg6 {[%clk
0:00:18.7]} 26... Qxg6 {[%clk 0:00:18.1]} 27. Bxg6 {[%clk 0:00:19.4]} 27... exd4
{[%clk 0:00:17.1]} 28. Rxd4 {[%clk 0:00:19]} 28... Bxg3 {[%clk 0:00:17.5]} 29.
fxg3 {[%clk 0:00:19.9]} 29... Be6 {[%clk 0:00:17.7]} 30. g4 {[%clk 0:00:19.6]}
30... Ke7 {[%clk 0:00:17.6]} 31. Bf5 {[%clk 0:00:20.1]} 31... Rg8 {[%clk
0:00:17.5]} 32. a4 {[%clk 0:00:11.8]} 32... Bxf5 {[%clk 0:00:17.1]} 33. gxf5
{[%clk 0:00:12.3]} 33... Rxg2+ {[%clk 0:00:17.7]} 34. Ka3 {[%clk 0:00:12.5]}
34... Kd6 {[%clk 0:00:17.6]} 35. b5 {[%clk 0:00:12.8]} 35... Rf2 {[%clk
0:00:16.9]} 36. Kb4 {[%clk 0:00:12.1]} 36... Rb2+ {[%clk 0:00:15.8]} 37. Ka3
{[%clk 0:00:10.8]} 37... Rb3+ {[%clk 0:00:15.7]} 38. Ka2 {[%clk 0:00:10.9]}
38... Rxc3 {[%clk 0:00:16.1]} 39. Rf4 {[%clk 0:00:10.4]} 39... Rd3 {[%clk
0:00:13.7]} 40. f6 {[%clk 0:00:10.3]} 40... Rd2+ {[%clk 0:00:13.5]} 41. Kb1
{[%clk 0:00:08.5]} 41... Rh2 {[%clk 0:00:11.8]} 42. f7 {[%clk 0:00:08.4]} 42...
Rh8 {[%clk 0:00:12]} 43. f8=Q+ {[%clk 0:00:07.7]} 43... Rxf8 {[%clk 0:00:12.4]}
44. Rxf8 {[%clk 0:00:08.4]} 44... Kc5 {[%clk 0:00:11.8]} 45. Rd8 {[%clk
0:00:06.5]} 45... a6 {[%clk 0:00:09.8]} 46. Kc2 {[%clk 0:00:07.4]} 46... axb5
{[%clk 0:00:09.4]} 47. axb5 {[%clk 0:00:08.3]} 47... d4 {[%clk 0:00:08.3]} 48.
b6 {[%clk 0:00:06.7]} 48... d3+ {[%clk 0:00:05.8]} 49. Kc3 {[%clk 0:00:06.9]}
49... Kb5 {[%clk 0:00:05.9]} 50. Rd4 {[%clk 0:00:06.8]} 50... Kxb6 {[%clk
0:00:03.7]} 51. Kxc4 {[%clk 0:00:05.7]} 51... Ka5 {[%clk 0:00:04.3]} 52. Rxd3
{[%clk 0:00:06.6]} 52... b5+ {[%clk 0:00:05]} 53. Kb3 {[%clk 0:00:06.2]} 53...
Kb6 {[%clk 0:00:05.9]} 54. Rd4 {[%clk 0:00:06]} 54... Ka6 {[%clk 0:00:06.8]} 55.
Rh4 {[%clk 0:00:06.4]} 55... Kb7 {[%clk 0:00:07.7]} 56. Kb4 {[%clk 0:00:06.8]}
56... Kc6 {[%clk 0:00:08.6]} 57. Rh5 {[%clk 0:00:07.2]} 57... Kd6 {[%clk
0:00:08.1]} 58. Rxb5 {[%clk 0:00:08.1]} 58... Ke6 {[%clk 0:00:09]} 59. Kc4
{[%clk 0:00:08.4]} 59... Kf6 {[%clk 0:00:09.9]} 60. Kd4 {[%clk 0:00:08.8]} 60...
Ke6 {[%clk 0:00:10.8]} 61. Ra5 {[%clk 0:00:09.4]} 61... Ke7 {[%clk 0:00:11.7]}
62. Ra6 {[%clk 0:00:08.9]} 62... Kd7 {[%clk 0:00:12]} 63. Kc5 {[%clk 0:00:09.8]}
63... Ke7 {[%clk 0:00:10.9]} 64. Kd5 {[%clk 0:00:10.1]} 64... Kf7 {[%clk
0:00:11.5]} 65. Ke5 {[%clk 0:00:11]} 65... Kg7 {[%clk 0:00:12.4]} 66. Kf5 {[%clk
0:00:11.4]} 66... Kh7 {[%clk 0:00:13.3]} 67. Kg5 {[%clk 0:00:11.8]} 67... Kg7
{[%clk 0:00:13.8]} 68. Ra7+ {[%clk 0:00:12.7]} 68... Kf8 {[%clk 0:00:13.5]} 69.
Kf6 {[%clk 0:00:13.4]} 69... Ke8 {[%clk 0:00:14.4]} 70. Ke6 {[%clk 0:00:13.7]}
70... Kd8 {[%clk 0:00:15.3]} 71. Rh7 {[%clk 0:00:13.8]} 71... Kc8 {[%clk
0:00:16.2]} 72. Kd6 {[%clk 0:00:14.2]} 72... Kb8 {[%clk 0:00:15.5]} 73. Kc6
{[%clk 0:00:14.6]} 73... Ka8 {[%clk 0:00:15.5]} 74. Kb6 {[%clk 0:00:15]} 1-0

[Event "*** Titled Tuesday Blitz"]
[Site "Chess.com"]
[Date "2021.04.27"]
[Round "5"]
[White "TokChess"]
[Black "david_alex"]
[Result "1-0"]
[WhiteElo "2406"]
[BlackElo "2110"]
[TimeControl "180+1"]
[EndTime "10:57:37 PDT"]
[Termination "TokChess won by resignation"]

1. d4 {[%clk 0:02:38.5]} 1... Nf6 {[%clk 0:02:59.8]} 2. c3 {[%clk 0:02:34.4]}
2... d5 {[%clk 0:02:59]} 3. Nf3 {[%clk 0:02:35.3]} 3... e6 {[%clk 0:02:59]} 4.
Bg5 {[%clk 0:02:35]} 4... Nbd7 {[%clk 0:02:58.1]} 5. Nbd2 {[%clk 0:02:35.2]}
5... h6 {[%clk 0:02:58.2]} 6. Bh4 {[%clk 0:02:34.7]} 6... g5 {[%clk 0:02:54.6]}
7. Bg3 {[%clk 0:02:34.5]} 7... Nh5 {[%clk 0:02:55.3]} 8. e3 {[%clk 0:02:27]}
8... Bg7 {[%clk 0:02:53.2]} 9. Bd3 {[%clk 0:02:19.5]} 9... Nxg3 {[%clk
0:02:52.9]} 10. hxg3 {[%clk 0:02:19.3]} 10... Nb6 {[%clk 0:02:42.7]} 11. e4
{[%clk 0:02:15.6]} 11... Bd7 {[%clk 0:02:36.6]} 12. Qe2 {[%clk 0:02:14.9]} 12...
Qe7 {[%clk 0:02:34.4]} 13. exd5 {[%clk 0:02:10.3]} 13... exd5 {[%clk 0:02:30]}
14. Qxe7+ {[%clk 0:02:10.9]} 14... Kxe7 {[%clk 0:02:30.5]} 15. O-O-O {[%clk
0:02:09]} 15... Rae8 {[%clk 0:02:26.2]} 16. Nf1 {[%clk 0:02:07.3]} 16... f5
{[%clk 0:02:25.8]} 17. Ne3 {[%clk 0:02:03.3]} 17... Rhf8 {[%clk 0:02:18.7]} 18.
Rde1 {[%clk 0:02:01.8]} 18... Kd8 {[%clk 0:02:14.4]} 19. Kd2 {[%clk 0:01:56.8]}
19... c6 {[%clk 0:02:14.7]} 20. Nh2 {[%clk 0:01:49.7]} 20... Nc8 {[%clk
0:02:14.5]} 21. f3 {[%clk 0:01:38.6]} 21... Nd6 {[%clk 0:02:14]} 22. Nc2 {[%clk
0:01:38.2]} 22... b6 {[%clk 0:01:48.2]} 23. Nf1 {[%clk 0:01:25.9]} 23... Rxe1
{[%clk 0:01:45.5]} 24. Nxe1 {[%clk 0:01:26.8]} 24... c5 {[%clk 0:01:44.1]} 25.
Nc2 {[%clk 0:01:21.3]} 25... Nb5 {[%clk 0:01:40.8]} 26. Bxb5 {[%clk 0:01:18.9]}
26... Bxb5 {[%clk 0:01:40.8]} 27. Nfe3 {[%clk 0:01:19.8]} 27... Bc6 {[%clk
0:01:33.1]} 28. g4 {[%clk 0:01:20.1]} 28... fxg4 {[%clk 0:01:23.6]} 29. Nxg4
{[%clk 0:01:21]} 29... Rh8 {[%clk 0:01:19.5]} 30. b4 {[%clk 0:01:15.2]} 30...
cxd4 {[%clk 0:01:06.6]} 31. Nxd4 {[%clk 0:01:14.1]} 31... Bd7 {[%clk 0:01:07]}
32. Ne3 {[%clk 0:01:12]} 32... Bxd4 {[%clk 0:01:04.7]} 33. cxd4 {[%clk
0:01:10.9]} 33... Be6 {[%clk 0:01:05.4]} 34. b5 {[%clk 0:00:58.7]} 34... Kd7
{[%clk 0:01:05.2]} 35. a4 {[%clk 0:00:58.9]} 35... Kd6 {[%clk 0:00:51.4]} 36.
Ke2 {[%clk 0:00:50]} 36... h5 {[%clk 0:00:49.3]} 37. Kf2 {[%clk 0:00:49.3]}
37... h4 {[%clk 0:00:46.7]} 38. Rc1 {[%clk 0:00:36.8]} 38... Bd7 {[%clk
0:00:46.2]} 39. Nf1 {[%clk 0:00:16]} 39... Rf8 {[%clk 0:00:44.4]} 40. Ne3 {[%clk
0:00:09.8]} 40... Rh8 {[%clk 0:00:36.1]} 41. Rc3 {[%clk 0:00:08.7]} 41... h3
{[%clk 0:00:34]} 42. gxh3 {[%clk 0:00:06.4]} 42... Rxh3 {[%clk 0:00:34.2]} 43.
Kg2 {[%clk 0:00:06.3]} 43... Rh4 {[%clk 0:00:31.5]} 44. Rd3 {[%clk 0:00:05.6]}
44... Rf4 {[%clk 0:00:28.3]} 45. Kg3 {[%clk 0:00:05.6]} 45... Be6 {[%clk
0:00:26.5]} 46. Ng2 {[%clk 0:00:05.7]} 46... Rf8 {[%clk 0:00:23.1]} 47. Rc3
{[%clk 0:00:06.3]} 47... Bd7 {[%clk 0:00:23.2]} 48. Ne3 {[%clk 0:00:05.2]} 48...
Rf4 {[%clk 0:00:23.1]} 49. Rd3 {[%clk 0:00:04.5]} 49... Rf8 {[%clk 0:00:22.7]}
50. Rd1 {[%clk 0:00:03.9]} 50... Rc8 {[%clk 0:00:20.9]} 51. Rh1 {[%clk
0:00:03.9]} 51... Rc3 {[%clk 0:00:20.3]} 52. Rh6+ {[%clk 0:00:03.9]} 52... Kc7
{[%clk 0:00:20.2]} 53. Nxd5+ {[%clk 0:00:03.5]} 53... Kd8 {[%clk 0:00:18.6]} 54.
Nxc3 {[%clk 0:00:04.4]} 54... Kc8 {[%clk 0:00:18.2]} 55. Nd5 {[%clk 0:00:04.8]}
55... Be6 {[%clk 0:00:17.9]} 56. Nf6 {[%clk 0:00:04.1]} 56... Bf7 {[%clk
0:00:17.2]} 57. Rh7 {[%clk 0:00:04.3]} 57... Be6 {[%clk 0:00:17.2]} 58. Rxa7
{[%clk 0:00:04.7]} 58... Kb8 {[%clk 0:00:17.5]} 59. Re7 {[%clk 0:00:04.4]} 59...
Kc8 {[%clk 0:00:18.1]} 60. Ne4 {[%clk 0:00:04.7]} 60... Bd7 {[%clk 0:00:18.2]}
61. Nd6+ {[%clk 0:00:04.7]} 61... Kd8 {[%clk 0:00:18.3]} 62. Rg7 {[%clk
0:00:05.6]} 62... Kc7 {[%clk 0:00:18.7]} 63. Ne8+ {[%clk 0:00:05.3]} 63... Kd8
{[%clk 0:00:19.1]} 64. Nf6 {[%clk 0:00:06.2]} 64... Be6 {[%clk 0:00:19.1]} 65.
Ne4 {[%clk 0:00:06.7]} 65... Bb3 {[%clk 0:00:18.5]} 66. Rg6 {[%clk 0:00:06.5]}
66... Bxa4 {[%clk 0:00:19.1]} 67. Rxb6 {[%clk 0:00:06.7]} 67... Bb3 {[%clk
0:00:19.2]} 68. Rg6 {[%clk 0:00:06.4]} 68... Bf7 {[%clk 0:00:18.4]} 69. Rg7
{[%clk 0:00:06.2]} 69... Bc4 {[%clk 0:00:18.5]} 70. b6 {[%clk 0:00:07.1]} 70...
Kc8 {[%clk 0:00:18.5]} 71. b7+ {[%clk 0:00:07.6]} 71... Kb8 {[%clk 0:00:19.2]}
72. Nc5 {[%clk 0:00:08.2]} 72... Bd5 {[%clk 0:00:18.7]} 73. Na6+ {[%clk
0:00:08.3]} 73... Ka7 {[%clk 0:00:18.9]} 74. b8=Q+ {[%clk 0:00:08.6]} 74... Kxa6
{[%clk 0:00:19.8]} 1-0

[Event "*** Titled Tuesday Blitz"]
[Site "Chess.com"]
[Date "2021.04.27"]
[Round "5"]
[White "TomasKapitanchuk"]
[Black "I_am_a_Miracle"]
[Result "0-1"]
[WhiteElo "2533"]
[BlackElo "2391"]
[TimeControl "180+1"]
[EndTime "10:57:42 PDT"]
[Termination "I_am_a_Miracle won by resignation"]

1. e4 {[%clk 0:03:00.9]} 1... g6 {[%clk 0:02:59.8]} 2. d4 {[%clk 0:03:00.3]}
2... Bg7 {[%clk 0:03:00.1]} 3. Nf3 {[%clk 0:02:59.8]} 3... d6 {[%clk 0:03:00.2]}
4. Nc3 {[%clk 0:03:00.2]} 4... a6 {[%clk 0:03:00.2]} 5. a4 {[%clk 0:02:59.5]}
5... Nf6 {[%clk 0:03:00]} 6. h3 {[%clk 0:02:59.4]} 6... O-O {[%clk 0:02:59.8]}
7. Be2 {[%clk 0:02:59.8]} 7... Nc6 {[%clk 0:02:59.7]} 8. O-O {[%clk 0:02:59.8]}
8... e5 {[%clk 0:02:59.6]} 9. dxe5 {[%clk 0:02:59.5]} 9... dxe5 {[%clk
0:02:56.3]} 10. Be3 {[%clk 0:02:59.4]} 10... Qe7 {[%clk 0:02:54.1]} 11. a5
{[%clk 0:02:54.3]} 11... Rd8 {[%clk 0:02:52.9]} 12. Qb1 {[%clk 0:02:54.7]} 12...
Nd4 {[%clk 0:02:48.7]} 13. Bd1 {[%clk 0:02:40]} 13... h6 {[%clk 0:01:39.9]} 14.
b4 {[%clk 0:02:34.8]} 14... c6 {[%clk 0:01:35.9]} 15. Re1 {[%clk 0:02:25.2]}
15... Kh7 {[%clk 0:01:34]} 16. Na4 {[%clk 0:02:19.5]} 16... Nxe4 {[%clk
0:01:22.7]} 17. Bxd4 {[%clk 0:01:42]} 17... exd4 {[%clk 0:01:22.1]} 18. Nb6
{[%clk 0:01:41.1]} 18... Rb8 {[%clk 0:01:13]} 19. Nxc8 {[%clk 0:01:32.3]} 19...
Rbxc8 {[%clk 0:01:12.6]} 20. Nd2 {[%clk 0:01:05.9]} 20... Nxd2 {[%clk
0:01:11.8]} 21. Rxe7 {[%clk 0:01:06.2]} 21... Nxb1 {[%clk 0:01:11.9]} 22. Rxb1
{[%clk 0:01:07.1]} 22... Kg8 {[%clk 0:00:59.2]} 23. Rxb7 {[%clk 0:01:05.6]}
23... Rb8 {[%clk 0:00:43.4]} 24. Ra7 {[%clk 0:00:59.7]} 24... c5 {[%clk
0:00:39.6]} 25. Rxa6 {[%clk 0:00:56.1]} 25... cxb4 {[%clk 0:00:39.4]} 26. Be2
{[%clk 0:00:53.3]} 26... Ra8 {[%clk 0:00:36.5]} 27. Rxa8 {[%clk 0:00:52.6]}
27... Rxa8 {[%clk 0:00:37.1]} 28. a6 {[%clk 0:00:53.5]} 28... Bf8 {[%clk
0:00:36]} 29. Re1 {[%clk 0:00:48.6]} 29... Bc5 {[%clk 0:00:34.2]} 30. Bc4 {[%clk
0:00:48.4]} 30... Ra7 {[%clk 0:00:33.3]} 31. Re5 {[%clk 0:00:47.6]} 31... Rc7
{[%clk 0:00:32.6]} 32. Rd5 {[%clk 0:00:35.1]} 32... Kg7 {[%clk 0:00:32.5]} 33.
Kh2 {[%clk 0:00:33.7]} 33... Kf6 {[%clk 0:00:31.8]} 34. Kg3 {[%clk 0:00:32.7]}
34... Ba7 {[%clk 0:00:30.5]} 35. Bb3 {[%clk 0:00:29.1]} 35... Rc6 {[%clk
0:00:25]} 36. Rd7 {[%clk 0:00:27.1]} 36... Rxa6 {[%clk 0:00:25.2]} 37. Rxf7+
{[%clk 0:00:27.5]} 37... Ke5 {[%clk 0:00:25.2]} 38. f4+ {[%clk 0:00:25.8]} 38...
Ke4 {[%clk 0:00:21.2]} 39. Re7+ {[%clk 0:00:18.3]} 39... Kf5 {[%clk 0:00:20.8]}
40. Rf7+ {[%clk 0:00:13.1]} 40... Ke4 {[%clk 0:00:20.7]} 41. Kg4 {[%clk
0:00:12.9]} 41... Ke3 {[%clk 0:00:18.8]} 42. Re7+ {[%clk 0:00:11.5]} 42... Kd2
{[%clk 0:00:19]} 43. Rd7 {[%clk 0:00:11.8]} 43... Kc3 {[%clk 0:00:19]} 44. h4
{[%clk 0:00:10.7]} 44... Bc5 {[%clk 0:00:15.5]} 45. h5 {[%clk 0:00:10.2]} 45...
gxh5+ {[%clk 0:00:15.3]} 46. Kxh5 {[%clk 0:00:11.1]} 46... Ra5 {[%clk
0:00:11.8]} 47. Kxh6 {[%clk 0:00:10.1]} 47... Bf8+ {[%clk 0:00:10.9]} 48. Kg6
{[%clk 0:00:09.3]} 48... Ra3 {[%clk 0:00:05.1]} 49. g4 {[%clk 0:00:07.6]} 49...
Rxb3 {[%clk 0:00:05]} 50. cxb3 {[%clk 0:00:08.5]} 50... d3 {[%clk 0:00:05.6]}
51. Kf7 {[%clk 0:00:08.4]} 51... Bc5 {[%clk 0:00:03.4]} 52. g5 {[%clk
0:00:08.7]} 52... Bd4 {[%clk 0:00:03.8]} 53. Rxd4 {[%clk 0:00:06.4]} 53... Kxd4
{[%clk 0:00:03.8]} 54. g6 {[%clk 0:00:07.3]} 54... d2 {[%clk 0:00:04.4]} 55. g7
{[%clk 0:00:08.2]} 55... d1=Q {[%clk 0:00:05.1]} 56. g8=Q {[%clk 0:00:09.1]}
56... Kc3 {[%clk 0:00:04.1]} 57. Kf6 {[%clk 0:00:05.8]} 57... Qxb3 {[%clk
0:00:04.1]} 58. Qc8+ {[%clk 0:00:05.3]} 58... Qc4 {[%clk 0:00:04.4]} 59. Qf8
{[%clk 0:00:02.9]} 59... b3 {[%clk 0:00:04.6]} 60. Kg5 {[%clk 0:00:03.1]} 60...
b2 {[%clk 0:00:04.6]} 61. Qb8 {[%clk 0:00:03.1]} 61... Kc2 {[%clk 0:00:04.2]}
62. f5 {[%clk 0:00:01.7]} 62... b1=Q {[%clk 0:00:04.4]} 63. Qxb1+ {[%clk
0:00:02.6]} 63... Kxb1 {[%clk 0:00:04.9]} 64. f6 {[%clk 0:00:03.5]} 64... Qf7
{[%clk 0:00:05.2]} 65. Kf5 {[%clk 0:00:04]} 65... Kc2 {[%clk 0:00:06.1]} 66. Kg5
{[%clk 0:00:04.6]} 66... Kc3 {[%clk 0:00:07]} 67. Kf5 {[%clk 0:00:05.5]} 67...
Kc4 {[%clk 0:00:07.9]} 0-1

[Event "*** Titled Tuesday Blitz"]
[Site "Chess.com"]
[Date "2021.04.27"]
[Round "5"]
[White "JoachimMouhamad"]
[Black "kaumandur01"]
[Result "1/2-1/2"]
[WhiteElo "2461"]
[BlackElo "2738"]
[TimeControl "180+1"]
[EndTime "10:57:47 PDT"]
[Termination "Game drawn - insufficient material"]

1. e4 {[%clk 0:03:00.9]} 1... c5 {[%clk 0:02:58.5]} 2. Nf3 {[%clk 0:03:01]} 2...
d6 {[%clk 0:02:58]} 3. d4 {[%clk 0:03:01.5]} 3... cxd4 {[%clk 0:02:58.9]} 4.
Nxd4 {[%clk 0:03:02.3]} 4... Nf6 {[%clk 0:02:59.8]} 5. Nc3 {[%clk 0:03:02.5]}
5... a6 {[%clk 0:03:00.4]} 6. f3 {[%clk 0:03:00.6]} 6... e5 {[%clk 0:03:00.2]}
7. Nb3 {[%clk 0:03:00.3]} 7... Be6 {[%clk 0:03:00.9]} 8. Be3 {[%clk 0:03:00.7]}
8... Nbd7 {[%clk 0:03:00.9]} 9. Qd2 {[%clk 0:03:00.8]} 9... h5 {[%clk
0:03:01.5]} 10. Nd5 {[%clk 0:03:00.1]} 10... Bxd5 {[%clk 0:02:59.2]} 11. exd5
{[%clk 0:03:00.8]} 11... g6 {[%clk 0:02:56]} 12. Be2 {[%clk 0:03:00.8]} 12...
Bg7 {[%clk 0:02:54.3]} 13. O-O {[%clk 0:03:01.5]} 13... b6 {[%clk 0:02:54]} 14.
c4 {[%clk 0:02:59.8]} 14... O-O {[%clk 0:02:53.2]} 15. Rab1 {[%clk 0:02:56.2]}
15... Kh7 {[%clk 0:02:26.5]} 16. Rfd1 {[%clk 0:02:51.1]} 16... Ng8 {[%clk
0:02:25]} 17. Na1 {[%clk 0:02:43.2]} 17... Bh6 {[%clk 0:02:24.3]} 18. Nc2 {[%clk
0:02:37.2]} 18... f5 {[%clk 0:02:18.1]} 19. Bxh6 {[%clk 0:02:36]} 19... Nxh6
{[%clk 0:02:18.6]} 20. Nb4 {[%clk 0:02:35.8]} 20... f4 {[%clk 0:02:18.2]} 21.
Nd3 {[%clk 0:02:23.9]} 21... Nf5 {[%clk 0:02:16.3]} 22. Nf2 {[%clk 0:02:22.1]}
22... Ne3 {[%clk 0:02:14.9]} 23. Rdc1 {[%clk 0:02:22.3]} 23... Qg5 {[%clk
0:02:14.2]} 24. Bf1 {[%clk 0:02:18.4]} 24... a5 {[%clk 0:02:05.1]} 25. Ne4
{[%clk 0:02:16.1]} 25... Qe7 {[%clk 0:02:05]} 26. Rc3 {[%clk 0:02:13.7]} 26...
Nc5 {[%clk 0:01:59.2]} 27. Nf2 {[%clk 0:01:59.7]} 27... e4 {[%clk 0:01:37.7]}
28. Rxe3 {[%clk 0:01:51.5]} 28... fxe3 {[%clk 0:01:36.6]} 29. Qxe3 {[%clk
0:01:52.4]} 29... Rae8 {[%clk 0:01:36.3]} 30. f4 {[%clk 0:01:43.6]} 30... Qf6
{[%clk 0:01:31.1]} 31. Nh3 {[%clk 0:01:40.7]} 31... Kg8 {[%clk 0:01:10.4]} 32.
b3 {[%clk 0:01:40.9]} 32... Nd3 {[%clk 0:00:52.6]} 33. Bxd3 {[%clk 0:01:33.5]}
33... exd3 {[%clk 0:00:53.2]} 34. Qxd3 {[%clk 0:01:34.3]} 34... Qf5 {[%clk
0:00:53.4]} 35. Qxf5 {[%clk 0:01:17.3]} 35... Rxf5 {[%clk 0:00:54.3]} 36. Kf2
{[%clk 0:01:11.2]} 36... Rf7 {[%clk 0:00:52.2]} 37. g3 {[%clk 0:01:01.1]} 37...
Rfe7 {[%clk 0:00:52]} 38. Rb2 {[%clk 0:01:01.4]} 38... Re1 {[%clk 0:00:50.5]}
39. Ng5 {[%clk 0:00:45.3]} 39... Rh1 {[%clk 0:00:47.7]} 40. Nf3 {[%clk
0:00:44.5]} 40... Re4 {[%clk 0:00:44.6]} 41. Kg2 {[%clk 0:00:33.8]} 41... Rd1
{[%clk 0:00:41.3]} 42. Kf2 {[%clk 0:00:34.2]} 42... Kg7 {[%clk 0:00:40.6]} 43.
Ng5 {[%clk 0:00:33.1]} 43... Ree1 {[%clk 0:00:38.7]} 44. Kf3 {[%clk 0:00:29.8]}
44... Rf1+ {[%clk 0:00:35.2]} 45. Kg2 {[%clk 0:00:26.7]} 45... Rg1+ {[%clk
0:00:34.7]} 46. Kh3 {[%clk 0:00:24.4]} 46... Rge1 {[%clk 0:00:31.9]} 47. Nf3
{[%clk 0:00:23.8]} 47... Re3 {[%clk 0:00:31.1]} 48. Ng5 {[%clk 0:00:23.1]} 48...
Kf6 {[%clk 0:00:30.9]} 49. Ne6 {[%clk 0:00:22.2]} 49... Rde1 {[%clk 0:00:26.2]}
50. Nc7 {[%clk 0:00:21]} 50... R3e2 {[%clk 0:00:22.2]} 51. Rxe2 {[%clk
0:00:20.4]} 51... Rxe2 {[%clk 0:00:23.1]} 52. Nb5 {[%clk 0:00:20.9]} 52... Rxa2
{[%clk 0:00:16.7]} 53. Nxd6 {[%clk 0:00:21.2]} 53... Rb2 {[%clk 0:00:17.3]} 54.
c5 {[%clk 0:00:16.2]} 54... bxc5 {[%clk 0:00:16.4]} 55. Ne4+ {[%clk 0:00:16.8]}
55... Ke7 {[%clk 0:00:15.4]} 56. Nxc5 {[%clk 0:00:17.7]} 56... Kd6 {[%clk
0:00:15]} 57. Nb7+ {[%clk 0:00:17.6]} 57... Kxd5 {[%clk 0:00:14.6]} 58. Nxa5
{[%clk 0:00:18.5]} 58... Kc5 {[%clk 0:00:14]} 59. Nc4 {[%clk 0:00:16.1]} 59...
Rxb3 {[%clk 0:00:14.2]} 60. Ne5 {[%clk 0:00:17]} 60... Kd4 {[%clk 0:00:12.6]}
61. Nxg6 {[%clk 0:00:16.2]} 61... Ke3 {[%clk 0:00:13.5]} 62. Kh4 {[%clk
0:00:16]} 62... Rb2 {[%clk 0:00:14.4]} 63. h3 {[%clk 0:00:16.2]} 63... Kf3
{[%clk 0:00:14.7]} 64. Ne5+ {[%clk 0:00:15.5]} 64... Kg2 {[%clk 0:00:15.4]} 65.
g4 {[%clk 0:00:14.6]} 65... Rb3 {[%clk 0:00:14.6]} 66. gxh5 {[%clk 0:00:14.7]}
66... Rxh3+ {[%clk 0:00:15.5]} 67. Kg5 {[%clk 0:00:15.4]} 67... Rg3+ {[%clk
0:00:16.3]} 68. Kf5 {[%clk 0:00:13.4]} 68... Rh3 {[%clk 0:00:16.5]} 69. Kg6
{[%clk 0:00:12.9]} 69... Kg3 {[%clk 0:00:15.9]} 70. h6 {[%clk 0:00:11.4]} 70...
Kxf4 {[%clk 0:00:16.8]} 71. Nf7 {[%clk 0:00:09.1]} 71... Rg3+ {[%clk 0:00:17.4]}
72. Kf6 {[%clk 0:00:09]} 72... Rh3 {[%clk 0:00:17.2]} 73. Kg7 {[%clk 0:00:08.8]}
73... Kf5 {[%clk 0:00:16.8]} 74. h7 {[%clk 0:00:09]} 74... Rg3+ {[%clk 0:00:17]}
75. Kf8 {[%clk 0:00:09]} 75... Rh3 {[%clk 0:00:17.2]} 76. Kg7 {[%clk 0:00:09.2]}
76... Rxh7+ {[%clk 0:00:15.2]} 77. Kxh7 {[%clk 0:00:09.4]} 1/2-1/2